bitfinex-derivatives/quotes_BTCF0:USTF0_20250929
["timestamp","ask_amount","ask_price","bid_price","bid_amount"]
[1759176414741,0.3652,114350.0,114340.0,1.63043466]
[1759176415134,0.3648,114350.0,114340.0,1.63043466]
[1759176415334,0.3648,114350.0,114340.0,0.13013882]
[1759176415335,0.3652,114350.0,114340.0,0.13013882]
[1759176415545,0.3652,114350.0,114340.0,1.63015466]
[1759176416042,0.0044,114350.0,114340.0,1.63015466]
[1759176416240,0.0044,114350.0,114340.0,1.99095466]
[1759176418240,0.0044,114350.0,114340.0,2.037829]
[1759176419243,0.0044,114350.0,114340.0,1.99095466]
[1759176420342,0.0044,114350.0,114340.0,1.64310443]
[1759176421439,0.0044,114350.0,114340.0,1.64270443]
[1759176422046,0.0044,114350.0,114340.0,0.83774443]
[1759176422246,0.02726,114350.0,114340.0,0.82882681]
[1759176422440,0.02726,114350.0,114340.0,0.46802681]
[1759176423040,0.02726,114350.0,114340.0,1.27294681]
[1759176423444,0.02726,114350.0,114340.0,0.46802681]
[1759176423635,0.02726,114350.0,114340.0,1.27294681]
[1759176423842,0.0044,114350.0,114340.0,1.27294681]
[1759176424047,0.02726,114350.0,114340.0,0.9261412]
[1759176424347,0.0044,114350.0,114340.0,1.27294681]
[1759176426050,0.0044,114350.0,114340.0,0.46802681]
[1759176426447,0.02726,114350.0,114340.0,0.46802681]
[1759176426747,0.02726,114350.0,114340.0,1.27290681]
[1759176427650,0.0044,114350.0,114340.0,1.27290681]
[1759176428549,0.0044,114350.0,114340.0,0.1212212]
[1759176428739,0.78707561,114350.0,114340.0,0.1086012]
[1759176428945,1.23526911,114350.0,114340.0,0.9196012]
[1759176429350,1.14787561,114350.0,114340.0,0.9196012]
[1759176430050,1.14787561,114350.0,114340.0,0.9322212]
[1759176430846,1.13486561,114350.0,114340.0,0.9322212]
[1759176432043,0.78806,114350.0,114340.0,0.9322212]
[1759176432243,0.38806,114350.0,114340.0,1.27902681]
[1759176432645,0.38766,114350.0,114340.0,1.27902681]
[1759176432849,0.38806,114350.0,114340.0,1.27902681]
[1759176434150,0.38806,114350.0,114340.0,0.9322212]
[1759176434451,0.38806,114350.0,114340.0,1.27902681]
[1759176438148,0.3652,114350.0,114340.0,1.27902681]
[1759176438753,0.38754,114350.0,114340.0,0.46792681]
[1759176439053,0.38754,114350.0,114340.0,1.27736681]
[1759176439252,0.40773719,114350.0,114340.0,0.46792681]
[1759176439446,0.42793638,114350.0,114340.0,0.1211212]
[1759176439652,0.42793638,114350.0,114340.0,0.9305212]
[1759176440053,0.42793638,114350.0,114340.0,0.1211212]
[1759176440257,0.77474199,114350.0,114340.0,0.9305212]
[1759176440647,0.77474199,114350.0,114340.0,0.1211212]
[1759176440848,0.77474199,114350.0,114340.0,0.9306412]
[1759176441048,0.77474199,114350.0,114340.0,0.9305212]
[1759176441350,0.77474199,114350.0,114340.0,0.1211212]
[1759176441547,0.77474199,114350.0,114340.0,0.9304012]
[1759176443151,0.77474199,114350.0,114340.0,0.1211212]
[1759176443347,0.77474199,114350.0,114340.0,0.9304012]
[1759176443548,0.42793638,114350.0,114340.0,0.9304012]
[1759176443755,0.40559638,114350.0,114340.0,1.27720681]
[1759176443954,0.40519638,114350.0,114340.0,1.27720681]
[1759176444158,0.38539719,114350.0,114340.0,1.27720681]
[1759176444956,0.02459719,114350.0,114340.0,1.27720681]
[1759176445252,0.02459719,114350.0,114340.0,1.68488115]
[1759176448060,0.0008,114360.0,114340.0,2.43168676]
[1759176448265,0.3608,114380.0,114360.0,0.0873838]
[1759176448448,0.3608,114380.0,114370.0,1.28065381]
[1759176449058,0.38354,114380.0,114370.0,0.47081381]
[1759176449255,0.38354,114380.0,114370.0,1.28057381]
[1759176450262,0.45508963,114380.0,114370.0,1.28057381]
[1759176450462,0.45468963,114380.0,114370.0,1.28057381]
[1759176450664,0.45508963,114380.0,114370.0,1.28057381]
[1759176450966,0.46308963,114380.0,114370.0,1.28057381]
[1759176451462,0.44074963,114380.0,114370.0,1.28057381]
[1759176451867,0.46308963,114380.0,114370.0,0.47081381]
[1759176452061,0.46308963,114380.0,114370.0,1.28021381]
[1759176453362,0.46308963,114380.0,114370.0,0.1240082]
[1759176453667,0.1097182,114370.0,114360.0,0.8712111]
[1759176453869,0.82825381,114370.0,114360.0,0.8712111]
[1759176454062,0.82825381,114370.0,114360.0,0.1240111]
[1759176454365,0.1175859,114360.0,114350.0,0.9242435]
[1759176454667,0.82519151,114360.0,114350.0,0.9243635]
[1759176455368,0.82519151,114360.0,114350.0,0.1104435]
[1759176456367,0.1227449,114350.0,114340.0,0.1104468]
[1759176456670,0.38314,114350.0,114340.0,0.1240268]
[1759176456868,0.78314,114350.0,114340.0,0.1240268]
[1759176458369,0.78714,114350.0,114340.0,0.1240268]
[1759176459469,0.38714,114350.0,114340.0,0.1240268]
[1759176461169,0.39599941,114350.0,114340.0,0.1240268]
[1759176461369,0.73394561,114350.0,114340.0,0.1240268]
[1759176461865,0.83434911,114350.0,114340.0,0.1104468]
[1759176462263,0.74695561,114350.0,114340.0,0.1104468]
[1759176462464,0.75567744,114350.0,114340.0,0.1104468]
[1759176462672,0.74266744,114350.0,114340.0,0.1240268]
[1759176463268,0.73394561,114350.0,114340.0,0.1240268]
[1759176464468,0.94564203,114350.0,114340.0,0.1240268]
[1759176465172,0.95446902,114350.0,114340.0,0.1240268]
[1759176466869,0.60766341,114350.0,114340.0,0.1240268]
[1759176467069,0.95446902,114350.0,114340.0,0.1240268]
[1759176468671,1.04186252,114350.0,114340.0,0.1240268]
[1759176469864,0.95446902,114350.0,114340.0,0.1240268]
[1759176472072,0.23803642,114350.0,114340.0,0.47083241]
[1759176472473,0.23843642,114350.0,114340.0,0.47083241]
[1759176473376,0.23843642,114350.0,114340.0,1.28627241]
[1759176473776,0.23843642,114350.0,114340.0,1.28635241]
[1759176474576,0.23843642,114350.0,114340.0,0.9395468]
[1759176474770,0.23843642,114350.0,114340.0,1.28635241]
[1759176474967,0.23843642,114350.0,114340.0,0.47083241]
[1759176475167,0.23843642,114350.0,114340.0,1.28635241]
[1759176476178,0.23843642,114350.0,114340.0,0.47083241]
[1759176476373,0.23843642,114350.0,114340.0,1.28631241]
[1759176477981,0.23843642,114350.0,114340.0,0.47083241]
[1759176478182,0.23843642,114350.0,114340.0,1.28615241]
[1759176478877,0.58524203,114350.0,114340.0,0.1240268]
[1759176479079,0.95905203,114350.0,114340.0,0.1240268]
[1759176479685,1.04644553,114350.0,114340.0,0.1104468]
[1759176479979,0.95905203,114350.0,114340.0,0.1104468]
[1759176480284,0.97912619,114350.0,114340.0,0.1104468]
[1759176481582,0.97912619,114350.0,114340.0,0.1230668]
[1759176481783,0.95905203,114350.0,114340.0,0.1230668]
[1759176481981,0.59923642,114350.0,114340.0,0.1230668]
[1759176482177,0.94619492,114350.0,114340.0,0.4700253]
[1759176482393,0.96628714,114350.0,114340.0,0.4700253]
[1759176483384,0.96628714,114350.0,114340.0,0.51689964]
[1759176484182,0.61932864,114350.0,114340.0,0.51689964]
[1759176484382,0.96628714,114350.0,114340.0,0.51689964]
[1759176484985,1.05368064,114350.0,114340.0,0.51689964]
[1759176485187,0.96628714,114350.0,114340.0,0.51689964]
[1759176487081,1.06669064,114350.0,114340.0,0.16994114]
[1759176487278,0.1157212,114340.0,114330.0,0.16970954]
[1759176487475,0.1157212,114340.0,114330.0,0.15612954]
[1759176487476,1.19055711,114340.0,114330.0,0.15612954]
[1759176487687,2.21709353,114340.0,114330.0,0.13427954]
[1759176487890,2.61709353,114340.0,114330.0,0.0874052]
[1759176488075,0.1196788,114330.0,114320.0,0.13428754]
[1759176488278,0.1196788,114330.0,114310.0,0.2101917]
[1759176488279,1.19451471,114330.0,114310.0,0.2101917]
[1759176488483,1.083917,114320.0,114310.0,0.15621647]
[1759176488788,1.31573233,114320.0,114310.0,0.15621647]
[1759176488990,1.29561342,114320.0,114310.0,0.15621647]
[1759176489188,1.3646833,114320.0,114310.0,0.15621647]
[1759176489386,1.3576833,114320.0,114310.0,0.16221647]
[1759176489589,0.6559063,114320.0,114310.0,0.52179497]
[1759176489976,1.0032648,114320.0,114310.0,0.52179497]
[1759176490177,1.0032648,114320.0,114310.0,0.17483647]
[1759176490380,0.6563063,114320.0,114310.0,0.51879497]
[1759176490686,1.0032648,114320.0,114310.0,0.51879497]
[1759176490986,0.6563063,114320.0,114310.0,0.51579497]
[1759176491186,1.0032648,114320.0,114310.0,0.16883647]
[1759176491386,1.0032648,114320.0,114310.0,0.52279497]
[1759176491985,1.4376394,114320.0,114310.0,0.17583647]
[1759176492183,1.4485694,114320.0,114310.0,0.16321647]
[1759176492785,1.4485694,114320.0,114310.0,0.11634213]
[1759176492986,2.6644094,114320.0,114310.0,0.09449213]
[1759176493182,1.7611533,114320.0,114310.0,0.11634213]
[1759176493386,0.6633063,114320.0,114310.0,0.47592063]
[1759176493583,0.6629063,114320.0,114310.0,0.47592063]
[1759176493890,1.0102648,114320.0,114310.0,0.47592063]
[1759176494492,0.6494648,114320.0,114310.0,0.47592063]
[1759176496892,0.6494648,114320.0,114310.0,0.12896213]
[1759176497092,0.6494648,114320.0,114310.0,0.47592063]
[1759176497593,0.3025063,114320.0,114310.0,0.47592063]
[1759176497792,0.6494648,114320.0,114310.0,0.47592063]
[1759176497996,0.6494648,114320.0,114310.0,1.29092063]
[1759176498294,0.9964233,114320.0,114310.0,0.94396213]
[1759176498491,1.44464,114320.0,114310.0,0.94396213]
[1759176498690,1.44464,114320.0,114310.0,0.12896213]
[1759176499088,1.8525,114320.0,114310.0,0.11634213]
[1759176499993,1.86140277,114320.0,114310.0,0.11634213]
[1759176503294,1.86140277,114320.0,114310.0,0.09449213]
[1759176504195,2.22837962,114320.0,114310.0,0.00707423]
[1759176504993,3.04245962,114320.0,114310.0,0.00707423]
[1759176505494,3.05845962,114320.0,114310.0,7.423e-05]
[1759176505688,2.24437962,114320.0,114310.0,7.423e-05]
[1759176505891,3.05825962,114320.0,114310.0,7.423e-05]
[1759176506089,3.04225962,114320.0,114310.0,7.423e-05]
[1759176506696,3.04221962,114320.0,114310.0,7.423e-05]
[1759176507286,3.05801962,114320.0,114310.0,7.423e-05]
[1759176508293,0.0984397,114290.0,114280.0,0.1106416]
[1759176508495,1.9882067,114290.0,114280.0,0.0874416]
[1759176508690,2.19990312,114290.0,114280.0,0.0874416]
[1759176509296,1.38627192,114290.0,114280.0,0.0874416]
[1759176509598,1.29883222,114290.0,114280.0,0.1106416]
[1759176509801,2.11251222,114290.0,114280.0,0.1106416]
[1759176510100,1.76555372,114290.0,114280.0,0.1106416]
[1759176510287,1.77055372,114290.0,114280.0,0.1106416]
[1759176510491,1.77031372,114290.0,114280.0,0.1106416]
[1759176510698,0.59891522,114290.0,114280.0,0.1243916]
[1759176510893,1.75935372,114290.0,114280.0,0.1243916]
[1759176511094,0.94627372,114290.0,114280.0,0.1243916]
[1759176511296,1.75975372,114290.0,114280.0,0.1243916]
[1759176511498,0.94587372,114290.0,114280.0,0.1243916]
[1759176511799,1.75975372,114290.0,114280.0,0.1243916]
[1759176511992,1.75935372,114290.0,114280.0,0.1243916]
[1759176512187,1.75975372,114290.0,114280.0,0.1243916]
[1759176513201,0.94627372,114290.0,114280.0,0.1243916]
[1759176513698,1.75935372,114290.0,114280.0,0.1243916]
[1759176514897,1.75939372,114290.0,114280.0,0.1243916]
[1759176515500,0.94627372,114290.0,114280.0,0.1243916]
[1759176515801,1.75895372,114290.0,114280.0,0.1243916]
[1759176516794,0.94627372,114290.0,114280.0,0.1243916]
[1759176516996,0.23851522,114290.0,114280.0,1.2183086]
[1759176517192,0.21718522,114290.0,114280.0,0.8713501]
[1759176517597,0.21678522,114290.0,114280.0,0.8713501]
[1759176517798,0.23851522,114290.0,114280.0,1.2183086]
[1759176518997,0.21678522,114290.0,114280.0,1.62598294]
[1759176519193,0.21718522,114290.0,114280.0,1.62598294]
[1759176519398,0.21718522,114290.0,114280.0,1.22598294]
[1759176520606,0.21718522,114290.0,114280.0,2.03822294]
[1759176521202,0.21718522,114290.0,114280.0,2.03786294]
[1759176521706,0.21718522,114290.0,114280.0,1.22598294]
[1759176521905,0.21718522,114290.0,114280.0,2.03762294]
[1759176523008,0.13157012,114290.0,114280.0,2.3907486]
[1759176523907,0.13157012,114290.0,114280.0,1.5791086]
[1759176524101,0.15290012,114290.0,114280.0,1.9903086]
[1759176524406,0.13157012,114290.0,114280.0,2.05291383]
[1759176524801,0.13157012,114290.0,114280.0,1.24135383]
[1759176525105,0.13157012,114290.0,114280.0,2.05279383]
[1759176525302,0.13157012,114290.0,114280.0,1.24135383]
[1759176525502,0.13157012,114290.0,114280.0,2.05291383]
[1759176525810,0.13157012,114290.0,114280.0,1.24135383]
[1759176526105,0.13157012,114290.0,114280.0,2.05287383]
[1759176526707,0.13157012,114290.0,114280.0,1.24135383]
[1759176526908,0.13157012,114290.0,114280.0,2.05283383]
[1759176527209,0.13157012,114290.0,114280.0,2.03746425]
[1759176528311,0.13157012,114290.0,114280.0,1.9905886]
[1759176529211,0.13157012,114290.0,114280.0,2.03747383]
[1759176531305,0.10591162,114290.0,114280.0,2.03747383]
[1759176531706,0.01359462,114290.0,114280.0,2.43747383]
[1759176531908,0.0054888,114290.0,114280.0,2.43747383]
[1759176532114,0.7292585,114310.0,114300.0,0.123572]
[1759176532314,0.75009127,114310.0,114300.0,0.4705305]
[1759176532616,1.60009571,114320.0,114310.0,0.1235644]
[1759176532617,0.80723115,114320.0,114310.0,0.1235644]
[1759176532810,0.80723115,114320.0,114310.0,0.4705229]
[1759176533015,0.79832838,114320.0,114310.0,0.4705229]
[1759176533318,0.79872838,114320.0,114310.0,0.4705229]
[1759176533518,0.45176988,114320.0,114310.0,0.4705229]
[1759176533720,0.79872838,114320.0,114310.0,0.4705229]
[1759176535016,0.80972838,114320.0,114310.0,0.4705229]
[1759176541625,0.80972838,114320.0,114310.0,0.1235644]
[1759176541824,0.80972838,114320.0,114310.0,0.4705229]
[1759176542127,0.80972838,114320.0,114310.0,1.2798429]
[1759176542319,0.46276988,114320.0,114310.0,1.27996644]
[1759176543328,0.46276988,114320.0,114310.0,0.47064644]
[1759176543625,0.46276988,114320.0,114310.0,1.27964644]
[1759176544425,0.46276988,114320.0,114310.0,1.32653167]
[1759176545024,0.10196988,114320.0,114310.0,1.32653167]
[1759176546428,0.08046988,114320.0,114310.0,1.32653167]
[1759176546628,0.08006988,114320.0,114310.0,1.32653167]
[1759176546819,0.08046988,114320.0,114310.0,1.32653167]
[1759176547019,0.08046988,114320.0,114310.0,1.32617167]
[1759176547826,0.10196988,114320.0,114310.0,0.51753167]
[1759176548027,0.10196988,114320.0,114310.0,1.32609167]
[1759176548229,0.08046988,114320.0,114310.0,1.32609167]
[1759176548428,0.08046988,114320.0,114310.0,1.27920644]
[1759176548628,0.08046988,114320.0,114310.0,1.70225167]
[1759176549516,0.0114,114320.0,114310.0,1.70225167]
[1759176549720,0.3831,114340.0,114330.0,0.123549]
[1759176549925,0.3831,114340.0,114330.0,0.47063104]
[1759176550116,0.3823,114340.0,114330.0,1.27903104]
[1759176550427,0.3827,114340.0,114330.0,1.32594887]
[1759176550634,0.3823,114340.0,114330.0,0.51754887]
[1759176550923,0.3937,114340.0,114330.0,1.32594887]
[1759176551124,0.3722,114340.0,114330.0,1.32594887]
[1759176551427,0.3612,114340.0,114330.0,1.32594887]
[1759176551621,0.0004,114340.0,114330.0,1.32594887]
[1759176551821,0.0004,114340.0,114330.0,1.33465774]
[1759176553528,0.3616,114350.0,114340.0,0.1235413]
[1759176553529,0.3823,114350.0,114340.0,0.1235413]
[1759176553727,0.3823,114350.0,114340.0,0.47062334]
[1759176553927,0.45364485,114350.0,114340.0,0.1235413]
[1759176554431,0.45364485,114350.0,114340.0,0.9315013]
[1759176555225,0.45364485,114350.0,114340.0,0.9312613]
[1759176555426,0.45364485,114350.0,114340.0,0.9312213]
[1759176555622,0.45364485,114350.0,114340.0,1.27826334]
[1759176555925,1.52535179,114360.0,114350.0,0.1225137]
[1759176555926,0.0008,114360.0,114350.0,0.1225137]
[1759176556119,0.38304,114370.0,114360.0,0.122506]
[1759176556318,0.38304,114370.0,114360.0,0.46958804]
[1759176556724,0.38344,114370.0,114360.0,0.122506]
[1759176556917,0.73910209,114370.0,114360.0,0.122506]
[1759176557930,0.73052204,114370.0,114360.0,0.122506]
[1759176558131,0.38344,114370.0,114360.0,0.122506]
[1759176558534,0.45489819,114370.0,114360.0,0.930026]
[1759176558733,0.45489819,114370.0,114360.0,0.122506]
[1759176559638,0.80198023,114370.0,114360.0,0.122506]
[1759176561138,0.45489819,114370.0,114360.0,0.122506]
[1759176563738,1.26233819,114370.0,114360.0,0.122506]
[1759176563935,0.45489819,114370.0,114360.0,0.122506]
[1759176564140,1.26233819,114370.0,114360.0,0.122506]
[1759176564639,0.45489819,114370.0,114360.0,0.46958804]
[1759176565038,0.45449819,114370.0,114360.0,0.46958804]
[1759176565244,0.45489819,114370.0,114360.0,0.46958804]
[1759176568842,0.09409819,114370.0,114360.0,0.46958804]
[1759176569746,0.07185819,114370.0,114360.0,0.46958804]
[1759176569947,0.07185819,114370.0,114360.0,1.17747008]
[1759176570143,0.07145819,114370.0,114360.0,0.81667008]
[1759176570345,0.66043,114390.0,114380.0,0.1230807]
[1759176570551,1.04047788,114390.0,114380.0,0.1230807]
[1759176570745,1.38795992,114390.0,114380.0,0.1230807]
[1759176571444,0.75163992,114390.0,114380.0,0.1230807]
[1759176571639,0.40455788,114390.0,114380.0,0.1230807]
[1759176571840,1.21799788,114390.0,114380.0,0.1230807]
[1759176572039,1.22667534,114390.0,114380.0,0.1230807]
[1759176572450,1.29807911,114390.0,114380.0,0.1230807]
[1759176572850,1.29779911,114390.0,114380.0,0.1230807]
[1759176573050,1.64488115,114390.0,114380.0,0.1098907]
[1759176573250,1.74516415,114390.0,114380.0,0.0873707]
[1759176573544,1.65780115,114390.0,114380.0,0.0873707]
[1759176573750,1.65780115,114390.0,114380.0,0.1098907]
[1759176574139,2.00488319,114390.0,114380.0,0.1098907]
[1759176574343,2.49224619,114390.0,114380.0,0.0873707]
[1759176575048,0.3608,114420.0,114410.0,0.1230578]
[1759176575249,1.37363938,114440.0,114430.0,0.1230425]
[1759176575250,1.39694938,114440.0,114430.0,0.1230425]
[1759176575546,1.39694938,114440.0,114430.0,0.47012454]
[1759176575740,1.37403938,114440.0,114430.0,0.47012454]
[1759176575944,1.37363938,114440.0,114430.0,0.87012454]
[1759176576246,1.01323938,114440.0,114430.0,0.87012454]
[1759176578552,1.01323938,114440.0,114430.0,0.8827129]
[1759176579054,1.01283938,114440.0,114430.0,0.8827129]
[1759176579254,1.01323938,114440.0,114430.0,0.8827129]
[1759176579454,1.01323938,114440.0,114430.0,0.4827129]
[1759176583052,1.01283938,114440.0,114430.0,0.8827129]
[1759176583255,1.01323938,114440.0,114430.0,0.8827129]
[1759176584256,1.01323938,114440.0,114430.0,1.2946329]
[1759176584655,0.97904228,114440.0,114430.0,2.0554329]
[1759176585053,0.97864228,114440.0,114430.0,2.0554329]
[1759176585254,0.97904228,114440.0,114430.0,1.2435129]
[1759176585456,0.97904228,114440.0,114430.0,2.0551529]
[1759176585859,0.97904228,114440.0,114430.0,1.2435129]
[1759176586051,0.97904228,114440.0,114430.0,2.0550329]
[1759176586251,0.97904228,114440.0,114430.0,2.0549129]
[1759176588660,0.97904228,114440.0,114430.0,1.2435129]
[1759176588855,1.00235228,114440.0,114430.0,0.8827129]
[1759176589055,1.36315228,114440.0,114430.0,0.4827129]
[1759176589262,1.36315228,114440.0,114430.0,1.2934729]
[1759176589659,1.36315228,114440.0,114430.0,0.4827129]
[1759176590261,1.36315228,114440.0,114430.0,0.47012454]
[1759176591260,1.46147748,114440.0,114430.0,0.1098525]
[1759176591463,2.20855952,114440.0,114430.0,0.1098525]
[1759176592260,1.86147748,114440.0,114430.0,0.1098525]
[1759176593655,2.27739639,114440.0,114430.0,0.1104325]
[1759176593855,3.08787639,114440.0,114430.0,0.1104325]
[1759176594163,3.01903952,114440.0,114430.0,0.1104325]
[1759176594352,3.01903952,114440.0,114430.0,0.0873325]
[1759176594855,3.01899952,114440.0,114430.0,0.1104325]
[1759176595361,3.01883952,114440.0,114430.0,0.1104325]
[1759176595664,3.01883952,114440.0,114430.0,0.0873325]
[1759176595862,0.1098429,114430.0,114420.0,0.47071214]
[1759176596156,0.82465494,114430.0,114420.0,0.0873401]
[1759176596357,1.22465494,114430.0,114420.0,0.0873401]
[1759176596665,2.03501494,114430.0,114420.0,0.0873401]
[1759176597358,1.22465494,114430.0,114420.0,0.0873401]
[1759176597760,1.6880929,114430.0,114420.0,0.1104401]
[1759176597961,2.03517494,114430.0,114420.0,0.1104401]
[1759176598765,2.03505494,114430.0,114420.0,0.1104401]
[1759176599065,2.03505494,114430.0,114420.0,0.0873401]
[1759176599265,0.1227705,114420.0,114410.0,0.1104481]
[1759176599563,0.83065254,114420.0,114410.0,0.0873481]
[1759176599764,1.20671,114420.0,114410.0,0.1234081]
[1759176599964,1.2940505,114420.0,114410.0,0.1234081]
[1759176600162,0.38331,114420.0,114410.0,0.1234081]
[1759176600365,1.19375,114420.0,114410.0,0.47049014]
[1759176600770,1.19395,114420.0,114410.0,0.47049014]
[1759176601065,2.03530254,114420.0,114410.0,0.1104481]
[1759176601368,1.22506254,114420.0,114410.0,0.1124481]
[1759176601564,0.79064,114420.0,114410.0,0.1254081]
[1759176601760,0.78371,114420.0,114410.0,0.1234081]
[1759176601966,1.59371,114420.0,114410.0,0.47149014]
[1759176602461,0.8710505,114420.0,114410.0,0.1244081]
[1759176602667,2.10584357,114420.0,114410.0,0.001]
[1759176602864,2.12567764,114420.0,114410.0,0.0883481]
[1759176603465,1.31575764,114420.0,114410.0,0.0883481]
[1759176603675,2.12551764,114420.0,114410.0,0.0883481]
[1759176604362,2.47162812,114420.0,114410.0,0.0883481]
[1759176604870,2.47158812,114420.0,114410.0,0.0883481]
[1759176605774,2.47138812,114420.0,114410.0,0.0883481]
[1759176606874,2.47130812,114420.0,114410.0,0.1114481]
[1759176607074,2.48015596,114420.0,114410.0,0.0883481]
[1759176607966,1.78696344,114420.0,114410.0,0.1114481]
[1759176608162,2.48015596,114420.0,114410.0,0.0883481]
[1759176609974,1.67071596,114420.0,114410.0,0.0883481]
[1759176610270,2.48019596,114420.0,114410.0,0.1114481]
[1759176611573,1.67071596,114420.0,114410.0,0.1114481]
[1759176611770,2.48031596,114420.0,114410.0,0.1114481]
[1759176612072,0.45417103,114420.0,114410.0,0.47100436]
[1759176612268,0.45457103,114420.0,114410.0,0.47100436]
[1759176612468,0.3608,114420.0,114410.0,1.21760062]
[1759176612767,1.17076,114420.0,114410.0,1.21760062]
[1759176612971,1.17036,114420.0,114410.0,1.21760062]
[1759176613173,1.17036,114430.0,114420.0,0.1234005]
[1759176613473,1.19367,114430.0,114420.0,0.46999676]
[1759176613773,1.54026626,114430.0,114420.0,0.46999676]
[1759176614374,1.63859916,114430.0,114420.0,0.1104405]
[1759176614575,1.63859916,114430.0,114420.0,0.0873405]
[1759176615267,1.63859916,114430.0,114420.0,0.1104405]
[1759176617068,1.7076725,114430.0,114420.0,0.1104405]
[1759176617576,1.7074725,114430.0,114420.0,0.45703676]
[1759176618570,0.8981125,114430.0,114420.0,0.45703676]
[1759176618778,1.7074725,114430.0,114420.0,0.45703676]
[1759176619177,1.62876709,114430.0,114420.0,0.47035676]
[1759176619375,0.47305083,114430.0,114420.0,0.47035676]
[1759176619578,1.62860709,114430.0,114420.0,0.47035676]
[1759176619770,1.62860709,114430.0,114420.0,0.45703676]
[1759176619771,1.72693999,114430.0,114420.0,0.45703676]
[1759176620477,1.72693999,114430.0,114420.0,0.44703676]
[1759176621174,1.63960709,114430.0,114420.0,0.44703676]
[1759176621478,1.63204709,114430.0,114420.0,0.46035676]
[1759176621984,1.73037989,114430.0,114420.0,0.44703676]
[1759176622675,1.73037989,114430.0,114420.0,0.0773405]
[1759176623067,0.1173045,114420.0,114410.0,0.0873414]
[1759176623273,1.19116451,114420.0,114410.0,0.1089014]
[1759176623673,0.84456825,114420.0,114410.0,0.45549766]
[1759176623982,0.75722375,114420.0,114410.0,0.45549766]
[1759176624183,1.56934375,114420.0,114410.0,0.46881766]
[1759176624775,1.65668425,114420.0,114410.0,0.1089014]
[1759176624977,2.40328051,114420.0,114410.0,0.0893414]
[1759176625182,2.40328051,114420.0,114410.0,0.0903414]
[1759176625381,1.50382001,114420.0,114410.0,0.0903414]
[1759176625582,0.80369749,114420.0,114410.0,0.47181766]
[1759176625778,1.96217375,114420.0,114410.0,0.47181766]
[1759176626482,1.15029375,114420.0,114410.0,0.47181766]
[1759176626682,1.96285375,114420.0,114410.0,0.47181766]
[1759176626985,2.05019425,114420.0,114410.0,0.47181766]
[1759176627279,2.05019425,114420.0,114410.0,0.1252214]
[1759176627476,2.05019425,114420.0,114410.0,0.47181766]
[1759176627982,2.39679051,114420.0,114410.0,0.47181766]
[1759176628183,1.70359799,114420.0,114410.0,0.1252214]
[1759176628384,2.39679051,114420.0,114410.0,0.1252214]
[1759176628583,2.40372051,114420.0,114410.0,0.1252214]
[1759176628882,2.31634001,114420.0,114410.0,0.1252214]
[1759176629181,1.71048799,114420.0,114410.0,0.1252214]
[1759176629376,2.05708425,114420.0,114410.0,0.1252214]
[1759176629783,2.40368051,114420.0,114410.0,0.1252214]
[1759176630778,2.00368051,114420.0,114410.0,0.1252214]
[1759176630984,1.56281375,114420.0,114410.0,0.1252214]
[1759176631276,1.65015425,114420.0,114410.0,0.1252214]
[1759176631476,1.30303799,114420.0,114410.0,0.1252214]
[1759176631681,1.65003425,114420.0,114410.0,0.47181766]
[1759176632277,2.00356051,114420.0,114410.0,0.1119014]
[1759176633183,2.00356051,114420.0,114410.0,0.0903414]
[1759176635185,1.31036799,114420.0,114410.0,0.0903414]
[1759176635385,2.00356051,114420.0,114410.0,0.0903414]
[1759176635588,2.00356051,114420.0,114410.0,0.1119014]
[1759176636485,0.49143799,114420.0,114410.0,0.1252214]
[1759176636680,1.65179425,114420.0,114410.0,0.47181766]
[1759176637086,1.30519799,114420.0,114410.0,0.47181766]
[1759176637389,1.65179425,114420.0,114410.0,0.47181766]
[1759176637581,1.65183425,114420.0,114410.0,0.47181766]
[1759176638087,0.83803425,114420.0,114410.0,0.47181766]
[1759176638284,1.65183425,114420.0,114410.0,0.47181766]
[1759176639389,0.83803425,114420.0,114410.0,0.47181766]
[1759176639586,1.65143425,114420.0,114410.0,0.47181766]
[1759176641390,1.65107425,114420.0,114410.0,0.47181766]
[1759176642682,0.83803425,114420.0,114410.0,0.47181766]
[1759176642891,1.65075425,114420.0,114410.0,0.47181766]
[1759176644684,1.65075425,114420.0,114410.0,0.1252214]
[1759176644889,1.65075425,114420.0,114410.0,0.47181766]
[1759176645086,1.30415799,114420.0,114410.0,0.47181766]
[1759176645289,1.65075425,114420.0,114410.0,0.47181766]
[1759176645890,0.40409749,114420.0,114410.0,0.47181766]
[1759176646084,1.21577749,114420.0,114410.0,0.47181766]
[1759176646389,1.21617749,114420.0,114410.0,0.47181766]
[1759176646892,1.56277375,114420.0,114410.0,0.47181766]
[1759176647285,1.21617749,114420.0,114410.0,0.47181766]
[1759176647480,1.56277375,114420.0,114410.0,0.47181766]
[1759176650195,1.65704425,114420.0,114410.0,0.47181766]
[1759176652299,1.65604425,114420.0,114410.0,0.47181766]
[1759176653794,1.65604425,114420.0,114410.0,0.1119014]
[1759176654098,2.00264051,114420.0,114410.0,0.0903414]
[1759176654289,1.30944799,114420.0,114410.0,0.1119314]
[1759176654596,1.56049375,114420.0,114410.0,0.47242766]
[1759176654800,0.83703425,114420.0,114410.0,0.47242766]
[1759176654999,1.64803425,114420.0,114410.0,0.47242766]
[1759176655503,1.64803425,114420.0,114410.0,0.51934549]
[1759176655799,1.65396425,114420.0,114410.0,0.50544549]
[1759176656804,1.65396425,114420.0,114410.0,0.15884923]
[1759176657099,1.65396425,114420.0,114410.0,0.48385549]
[1759176657302,1.65396425,114420.0,114410.0,0.50544549]
[1759176657800,1.65396425,114420.0,114410.0,0.48385549]
[1759176657997,2.00056051,114420.0,114410.0,0.48385549]
[1759176658200,2.00056051,114420.0,114410.0,0.13725923]
[1759176658603,1.18956051,114420.0,114410.0,0.13725923]
[1759176658805,1.18956051,114420.0,114410.0,0.15884923]
[1759176658995,2.00008051,114420.0,114410.0,0.15884923]
[1759176659301,2.00008051,114420.0,114410.0,0.1119314]
[1759176659501,2.00008051,114420.0,114410.0,0.02459]
[1759176659704,2.00008051,114420.0,114410.0,0.1119381]
[1759176660601,2.00008051,114420.0,114410.0,0.02459]
[1759176660810,2.00008051,114420.0,114410.0,0.003]
[1759176661006,1.18956051,114420.0,114410.0,0.02459]
[1759176661206,0.40309749,114420.0,114410.0,1.21903062]
[1759176661500,0.01986749,114420.0,114410.0,1.26594845]
[1759176661704,1.26204334,114430.0,114420.0,0.1089305]
[1759176661906,1.2819752,114430.0,114420.0,0.81602302]
[1759176662102,0.4718952,114430.0,114420.0,1.21602302]
[1759176662310,0.97734415,114440.0,114430.0,0.1228229]
[1759176662606,0.97734415,114440.0,114430.0,1.17681542]
[1759176662803,0.97774415,114440.0,114430.0,1.63906065]
[1759176663207,0.97774415,114440.0,114430.0,1.57681542]
[1759176663407,0.97774415,114440.0,114430.0,2.38721542]
[1759176663603,0.97774415,114440.0,114430.0,1.57681542]
[1759176663797,0.97774415,114440.0,114430.0,2.39615858]
[1759176664107,0.97774415,114440.0,114430.0,1.63249093]
[1759176664302,0.97774415,114440.0,114430.0,2.44269093]